bitfinex/quotes_BTCUSD_20251221
["timestamp","ask_amount","ask_price","bid_price","bid_amount"]
[1766301815362,0.12467,88224.0,88221.0,2.76e-06]
[1766301815569,0.12467,88223.0,88220.0,0.01701529]
[1766301815783,0.1247593,88223.0,88220.0,0.00568]
[1766301815988,0.1247593,88223.0,88218.0,0.00568]
[1766301816190,0.12467,88222.0,88218.0,0.00568]
[1766301816401,0.12467,88222.0,88218.0,0.00231]
[1766301817025,0.12467,88221.0,88218.0,0.00231]
[1766301825049,0.000549,88218.0,88215.0,0.01133594]
[1766301825255,0.12467,88219.0,88215.0,0.01133594]
[1766301825433,0.12467,88219.0,88214.0,0.01701606]
[1766301827579,0.12467,88219.0,88214.0,0.00568]
[1766301830641,0.12467,88219.0,88215.0,0.01133594]
[1766301830978,0.12467,88219.0,88216.0,0.01133581]
[1766301831180,0.12467,88219.0,88215.0,0.01133594]
[1766301832353,0.12467,88219.0,88214.0,0.01701606]
[1766301832912,0.12467,88219.0,88215.0,0.01133594]
[1766301834119,0.12467,88219.0,88216.0,0.01133581]
[1766301834316,0.12467,88219.0,88215.0,0.01133594]
[1766301835334,0.10622522,88219.0,88215.0,0.01133594]
[1766301836433,0.10622522,88219.0,88214.0,0.01701606]
[1766301838482,0.12467,88217.0,88214.0,0.01701606]
[1766301839744,0.12467,88217.0,88215.0,0.0566797]
[1766301840646,0.12945,88218.0,88215.0,0.06801564]
[1766301841662,0.12945,88218.0,88215.0,0.01133594]
[1766301842067,0.12945,88218.0,88215.0,0.06801522]
[1766301842303,0.12467,88221.0,88216.0,0.01133581]
[1766301842541,0.01710536,88223.0,88220.0,0.01133529]
[1766301842749,0.01710536,88223.0,88219.0,0.01133542]
[1766301842959,8.93e-05,88223.0,88219.0,0.01133542]
[1766301843601,8.93e-05,88223.0,88218.0,0.01133555]
[1766301843809,8.93e-05,88223.0,88217.0,0.01133568]
[1766301844041,8.93e-05,88223.0,88218.0,0.01133555]
[1766301844195,8.93e-05,88223.0,88219.0,0.01133542]
[1766301845003,8.93e-05,88223.0,88218.0,0.01133555]
[1766301845350,0.1094105,88224.0,88218.0,0.01133555]
[1766301845526,0.2312705,88224.0,88218.0,0.01133555]
[1766301846095,0.2312705,88224.0,88219.0,0.01133542]
[1766301846934,0.2312705,88224.0,88218.0,0.01133555]
[1766301847349,0.2312705,88224.0,88219.0,0.01133542]
[1766301847538,0.2312705,88224.0,88218.0,0.01133555]
[1766301847733,0.2312705,88224.0,88220.0,0.01133529]
[1766301847939,0.2312705,88224.0,88219.0,0.01133542]
[1766301849191,0.2312705,88224.0,88218.0,0.01133555]
[1766301849400,0.2312705,88224.0,88219.0,0.01133542]
[1766301849800,0.2312705,88224.0,88218.0,0.01133555]
[1766301849995,0.2312705,88224.0,88216.0,0.01133581]
[1766301850531,0.23115715,88224.0,88215.0,0.01133594]
[1766301851905,0.23115715,88224.0,88216.0,0.01133581]
[1766301852133,0.12186,88224.0,88216.0,0.01133581]
[1766301852349,0.12186,88224.0,88215.0,0.01133594]
[1766301852562,0.01133594,88223.0,88216.0,0.01133581]
[1766301853771,0.01133594,88223.0,88215.0,0.01133594]
[1766301853929,0.01133594,88223.0,88216.0,0.01133581]
[1766301854535,0.01133594,88223.0,88215.0,0.01133594]
[1766301855095,0.01133594,88223.0,88216.0,0.01133581]
[1766301856694,0.01133594,88223.0,88215.0,0.01133594]
[1766301857337,0.12186,88224.0,88215.0,0.01133594]
[1766301859809,0.12186,88224.0,88216.0,0.01133581]
[1766301864585,0.12186,88224.0,88215.0,0.01133594]
[1766301865065,0.12186,88224.0,88217.0,0.01133568]
[1766301865263,0.12186,88224.0,88216.0,0.01133581]
[1766301866313,0.12186,88224.0,88217.0,0.01133568]
[1766301866938,0.12186,88224.0,88216.0,0.01133581]
[1766301868111,0.11463,88223.0,88216.0,0.01133581]
[1766301869634,0.11463,88223.0,88217.0,0.01133568]
[1766301871660,0.11463,88223.0,88216.0,0.01133581]
[1766301872855,0.11463,88223.0,88217.0,0.01133568]
[1766301874266,0.11463,88223.0,88216.0,0.01133581]
[1766301874490,0.11463,88223.0,88217.0,0.01133568]
[1766301875281,0.11463,88223.0,88216.0,0.01133581]
[1766301875440,0.11463,88223.0,88217.0,0.01133568]
[1766301876193,0.11463,88223.0,88216.0,0.01133581]
[1766301876968,0.11463,88223.0,88215.0,0.01133594]
[1766301877174,0.11463,88223.0,88216.0,0.01133581]
[1766301878262,0.11463,88223.0,88217.0,0.01133568]
[1766301878486,0.11463,88223.0,88216.0,0.01133581]
[1766301878691,0.11463,88223.0,88217.0,0.01133568]
[1766301878887,0.11463,88223.0,88216.0,0.01133581]
[1766301879104,0.11463,88223.0,88217.0,0.01133568]
[1766301881480,0.11463,88223.0,88216.0,0.01133581]
[1766301881667,0.11463,88223.0,88217.0,0.01133568]
[1766301882067,0.11096496,88223.0,88218.0,0.01133555]
[1766301882283,0.37372905,88240.0,88216.0,0.01133581]
[1766301882284,0.12712,88236.0,88222.0,0.06801024]
[1766301882488,0.14413581,88235.0,88222.0,0.01133504]
[1766301882720,0.14413581,88235.0,88220.0,0.01133529]
[1766301883492,0.15546918,88235.0,88219.0,0.01133542]
[1766301884054,0.14413581,88235.0,88219.0,0.01133542]
[1766301884413,0.11604,88232.0,88218.0,0.01133555]
[1766301884721,0.02834918,88235.0,88216.0,0.01133581]
[1766301884722,0.000549,88219.0,88216.0,0.01133581]
[1766301884920,0.11604,88226.0,88217.0,0.01133568]
[1766301885246,0.11604,88226.0,88216.0,0.01133581]
[1766301885446,0.11604,88226.0,88217.0,0.01133568]
[1766301885888,0.11604,88226.0,88216.0,0.01133581]
[1766301886536,0.11604,88226.0,88217.0,0.01133568]
[1766301887542,0.11604,88226.0,88216.0,0.01133581]
[1766301888054,0.11604,88225.0,88214.0,0.01701606]
[1766301888261,0.11604,88225.0,88214.0,0.01737447]
[1766301889102,0.11604,88225.0,88215.0,0.01133594]
[1766301890423,0.11604,88225.0,88216.0,0.01133581]
[1766301891176,0.11604,88225.0,88215.0,0.01133594]
[1766301891493,0.12712,88225.0,88216.0,0.01133581]
[1766301891679,0.11604,88224.0,88216.0,0.01133581]
[1766301891840,0.11604,88224.0,88217.0,0.01133568]
[1766301892782,0.11604,88224.0,88218.0,0.01133555]
[1766301892935,0.11604,88224.0,88216.0,0.01133581]
[1766301895133,0.11604,88224.0,88217.0,0.01133568]
[1766301897507,0.11604,88224.0,88216.0,0.01133581]
[1766301897725,0.11604,88224.0,88217.0,0.01133568]
[1766301898179,0.11604,88224.0,88215.0,0.01133594]
[1766301899394,0.12712,88223.0,88214.0,0.00603841]
[1766301899622,0.00568,88230.0,88214.0,0.01737447]
[1766301899623,0.24316,88221.0,88214.0,0.01737447]
[1766301900132,0.24316,88221.0,88215.0,0.01133594]
[1766301901036,0.24316,88221.0,88214.0,0.01737447]
[1766301901214,0.24316,88221.0,88215.0,0.01133594]
[1766301903783,0.24316,88221.0,88214.0,0.01737447]
[1766301903970,0.24316,88221.0,88215.0,0.01133594]
[1766301905090,0.24316,88221.0,88216.0,0.01133581]
[1766301905470,0.24316,88221.0,88215.0,0.01133594]
[1766301907522,0.24316,88221.0,88216.0,0.01133581]
[1766301907698,0.24316,88221.0,88214.0,0.01737447]
[1766301907699,0.000549,88216.0,88214.0,0.00603841]
[1766301908005,0.24316,88221.0,88214.0,0.00603841]
[1766301908162,0.12086,88220.0,88214.0,0.00603841]
[1766301908701,0.12086,88220.0,88214.0,0.00596441]
[1766301909831,0.01133452,88226.0,88214.0,0.00596441]
[1766301909832,0.12086,88217.0,88214.0,4.41e-06]
[1766301910037,0.12086,88215.0,88211.0,0.01133645]
[1766301910339,0.12121841,88215.0,88214.0,0.00568]
[1766301910541,0.00035841,88215.0,88214.0,0.00568]
[1766301910716,0.00568,88225.0,88214.0,0.00568]
[1766301910925,0.07252494,88222.0,88214.0,0.01701606]
[1766301912308,0.07252494,88222.0,88215.0,0.01133594]
[1766301914443,0.07252494,88222.0,88216.0,0.01133581]
[1766301914878,0.00568,88225.0,88217.0,0.01133568]
[1766301914879,0.12086,88224.0,88217.0,0.01133568]
[1766301915334,0.23915,88224.0,88218.0,0.01133555]
[1766301915971,0.23915,88224.0,88217.0,0.01133568]
[1766301916526,0.23915,88224.0,88218.0,0.01133555]
[1766301916855,0.23915,88224.0,88219.0,0.01133542]
[1766301917342,0.23915,88224.0,88218.0,0.01133555]
[1766301918105,0.12086,88223.0,88218.0,0.01133555]
[1766301918301,0.12086,88223.0,88217.0,0.01133568]
[1766301918510,0.12086,88222.0,88218.0,0.01133555]
[1766301922553,0.12086,88222.0,88217.0,0.01133568]
[1766301922894,0.12086,88222.0,88218.0,0.01133555]
[1766301924302,0.12086,88222.0,88217.0,0.01133568]
[1766301924523,0.12086,88222.0,88218.0,0.01133555]
[1766301926259,0.12086,88222.0,88219.0,0.01133542]
[1766301926690,0.000549,88219.0,88217.0,0.01133568]
[1766301926873,0.12086,88222.0,88217.0,0.01133568]
[1766301927006,0.12086,88222.0,88215.0,0.01133594]
[1766301927218,0.12086,88221.0,88216.0,0.01133581]
[1766301927657,0.12086,88221.0,88217.0,0.01133568]
[1766301928626,0.000549,88217.0,88216.0,0.01133581]
[1766301928814,7.372e-05,88217.0,88216.0,0.01133581]
[1766301928962,0.12086,88221.0,88217.0,0.01133568]
[1766301929701,0.12086,88221.0,88216.0,0.01133581]
[1766301930880,0.12086,88221.0,88216.0,8.93e-05]
[1766301931104,0.11302,88219.0,88216.0,1.63e-05]
[1766301931521,0.11302,88219.0,88216.0,0.01135211]
[1766301933218,0.11302,88219.0,88216.0,1.63e-05]
[1766301933745,0.11302,88219.0,88216.0,0.01135211]
[1766301935969,0.11302,88219.0,88216.0,1.63e-05]
[1766301936201,0.11302,88219.0,88216.0,0.01135211]
[1766301952435,0.11302,88219.0,88216.0,1.63e-05]
[1766301962730,0.11302,88219.0,88216.0,0.01135211]
[1766301963017,0.11807,88220.0,88216.0,0.01135211]
[1766301964342,0.11807,88220.0,88217.0,0.01133568]
[1766301964548,0.11807,88220.0,88216.0,0.01135211]
[1766301964684,0.11807,88220.0,88217.0,0.01133568]
[1766301967419,0.11807,88220.0,88216.0,0.01135211]
[1766301967818,0.11807,88220.0,88217.0,0.01133568]
[1766301968217,0.11807,88220.0,88216.0,0.01135211]
[1766301969040,0.11807,88220.0,88217.0,0.01133568]
[1766301969464,0.11807,88220.0,88216.0,0.01135211]
[1766301970310,0.11807,88220.0,88217.0,0.01133568]
[1766301970681,0.11807,88220.0,88216.0,0.01135211]
[1766301970888,0.11807,88220.0,88216.0,1.63e-05]
[1766301972593,0.01133619,88222.0,88216.0,1.63e-05]
[1766301973878,0.01133619,88222.0,88216.0,0.01135211]
[1766301974087,0.01133619,88222.0,88216.0,1.63e-05]
[1766301992688,0.12667619,88222.0,88216.0,1.63e-05]
[1766301993091,0.11534,88222.0,88216.0,1.63e-05]
[1766301993292,0.01133619,88221.0,88216.0,1.63e-05]
[1766301993954,0.12667619,88221.0,88216.0,1.63e-05]
[1766302002178,0.00568,88225.0,88217.0,0.01133568]
[1766302002325,0.1301,88225.0,88216.0,0.01135211]
[1766302002530,0.01701606,88222.0,88216.0,0.01135211]
[1766302002737,0.01701606,88222.0,88217.0,0.01133568]
[1766302003363,0.01701606,88222.0,88216.0,0.01135211]
[1766302003569,0.01701606,88222.0,88217.0,0.01133568]
[1766302005411,0.01701606,88222.0,88218.0,0.01133555]
[1766302005709,0.01701606,88222.0,88217.0,0.01133568]
[1766302006974,0.01701606,88222.0,88216.0,0.01135211]
[1766302007241,0.01701606,88222.0,88217.0,0.01133568]
[1766302007642,0.01701606,88222.0,88216.0,0.01135211]
[1766302008278,0.01701606,88222.0,88217.0,0.01133568]
[1766302009122,0.01701606,88222.0,88216.0,0.01135211]
[1766302009279,0.01701606,88222.0,88217.0,0.01133568]
[1766302010724,0.01701606,88222.0,88216.0,1.63e-05]
[1766302010898,0.01701606,88222.0,88216.0,0.01135211]
[1766302011327,0.01701606,88222.0,88217.0,0.01133568]
[1766302011503,0.01701606,88222.0,88216.0,0.01135211]
[1766302013185,0.01701606,88222.0,88217.0,0.01133568]
[1766302014052,0.01701606,88222.0,88216.0,0.01135211]
[1766302014258,0.01701606,88222.0,88217.0,0.01133568]
[1766302017671,0.01701606,88222.0,88216.0,0.01135211]
[1766302017879,0.01701606,88222.0,88217.0,0.01133568]
[1766302018394,0.01701606,88222.0,88218.0,0.01133555]
[1766302018788,0.01701606,88222.0,88219.0,0.01133542]
[1766302019188,0.01701606,88222.0,88219.0,0.00673041]
[1766302020059,0.01701606,88222.0,88218.0,0.01133555]
[1766302020215,0.01701606,88222.0,88219.0,0.01133542]
[1766302020416,0.01701606,88222.0,88218.0,0.01133555]
[1766302020639,0.01701606,88222.0,88219.0,0.01133542]
[1766302020959,0.01701606,88222.0,88218.0,0.01133555]
[1766302021456,0.01701606,88222.0,88217.0,0.01133568]
[1766302021685,0.01701606,88222.0,88218.0,0.01133555]
[1766302021836,0.01701606,88222.0,88217.0,0.01133568]
[1766302022606,0.01701606,88222.0,88218.0,0.01133555]
[1766302023228,0.01701606,88222.0,88217.0,0.01133568]
[1766302023456,0.01701606,88222.0,88218.0,0.01133555]
[1766302024375,0.01701606,88222.0,88217.0,0.01133568]
[1766302024780,0.01701606,88222.0,88218.0,0.01133555]
[1766302024917,0.01701606,88222.0,88217.0,0.01133568]
[1766302025960,0.000549,88217.0,88216.0,0.01135211]
[1766302026192,0.01701606,88222.0,88216.0,0.01135211]
[1766302026856,0.01701606,88222.0,88217.0,0.01133568]
[1766302027581,0.01701606,88222.0,88216.0,0.01135211]
[1766302027778,7.4e-05,88217.0,88216.0,0.01135211]
[1766302028014,0.01701606,88222.0,88217.0,0.01133568]
[1766302028533,0.01576078,88222.0,88217.0,0.01133568]
[1766302029309,7.4e-05,88217.0,88216.0,0.01135211]
[1766302029544,0.01576078,88222.0,88216.0,0.01135211]
[1766302030253,0.01576078,88222.0,88217.0,0.01133568]
[1766302030913,0.01576078,88222.0,88216.0,0.01135211]
[1766302031209,0.01576078,88222.0,88216.0,1.63e-05]
[1766302032099,0.01576078,88222.0,88216.0,0.01135211]
[1766302032654,0.01576078,88222.0,88217.0,0.01133568]
[1766302033255,0.01576078,88222.0,88218.0,0.01133555]
[1766302033732,0.01576078,88222.0,88217.0,0.01133568]
[1766302034128,0.01521178,88222.0,88219.0,0.06801242]
[1766302034344,0.1301,88225.0,88222.0,0.01133504]
[1766302034640,0.03405973,88224.0,88222.0,0.01133504]
[1766302034843,0.03405973,88224.0,88222.0,0.06800962]
[1766302035462,0.00568,88233.0,88229.0,0.01133414]
[1766302035663,0.11584,88237.0,88230.0,0.01133401]
[1766302035822,0.00568,88235.0,88232.0,0.01133375]
[1766302036443,0.00568,88235.0,88231.0,0.01133388]
[1766302036766,0.00568,88235.0,88232.0,0.01133375]
[1766302037513,0.11584,88237.0,88231.0,0.01133388]
[1766302037790,0.00568,88238.0,88231.0,0.01133388]
[1766302038801,0.00568,88238.0,88232.0,0.01133375]
[1766302039131,0.00568,88238.0,88231.0,0.01133388]
[1766302039752,0.00568,88238.0,88230.0,0.01133401]
[1766302040163,0.00568,88238.0,88231.0,0.01133388]
[1766302040684,0.00055,88231.0,88230.0,0.01133401]
[1766302040890,0.00568,88238.0,88230.0,0.01133401]
[1766302041491,0.00568,88238.0,88229.0,0.01133414]
[1766302041714,0.00568,88238.0,88230.0,0.01133401]
[1766302042220,0.00055,88230.0,88227.0,0.01133439]
[1766302042599,0.12152,88238.0,88227.0,0.01133439]
[1766302043039,0.12152,88238.0,88228.0,0.01133427]
[1766302043385,0.12152,88238.0,88229.0,0.01133414]
[1766302044031,0.12152,88238.0,88228.0,0.01133427]
[1766302044246,0.12152,88238.0,88227.0,0.01133439]
[1766302044455,0.12152,88238.0,88227.0,0.06800601]
[1766302044653,0.07252494,88237.0,88227.0,0.01133439]
[1766302044897,0.07252494,88237.0,88225.0,0.06800783]
[1766302045281,0.07252494,88237.0,88228.0,0.01133427]
[1766302045482,0.18836494,88237.0,88228.0,0.01133427]
[1766302045725,0.18836494,88237.0,88227.0,0.01133439]
[1766302046537,0.18836494,88237.0,88230.0,0.01133401]
[1766302046853,0.00055,88230.0,88226.0,0.01701452]
[1766302047051,0.00055,88230.0,88227.0,0.01133439]
[1766302047253,0.11338,88236.0,88228.0,0.01133427]
[1766302047454,0.11338,88236.0,88226.0,0.00568]
[1766302047674,0.12502,88235.0,88227.0,0.01133439]
[1766302047864,0.12502,88233.0,88227.0,0.01133439]
[1766302048160,0.2384,88233.0,88227.0,0.01133439]
[1766302048372,0.12502,88231.0,88226.0,0.07368679]
[1766302048740,0.12502,88231.0,88228.0,0.01133427]
[1766302048954,0.11338,88236.0,88230.0,0.01133401]
[1766302049804,0.2384,88236.0,88230.0,0.01133401]
[1766302050003,0.11338,88235.0,88230.0,0.01133401]
[1766302051392,0.11001,88235.0,88230.0,0.01133401]
[1766302052379,0.12502,88235.0,88230.0,0.06800395]
[1766302052825,0.12502,88235.0,88231.0,0.01133388]
[1766302055100,0.12502,88235.0,88230.0,0.01133401]
[1766302056082,0.12502,88235.0,88231.0,0.01133388]
[1766302056498,0.12502,88235.0,88228.0,0.01133427]
[1766302057804,0.12502,88235.0,88230.0,0.01133401]
[1766302057982,0.12502,88235.0,88229.0,0.06800484]
[1766302058390,0.12502,88235.0,88229.0,0.01133414]
[1766302059232,0.12502,88235.0,88228.0,0.01133427]
[1766302059453,0.12502,88235.0,88229.0,0.01133414]
[1766302061247,0.24068,88235.0,88229.0,0.01133414]
[1766302061998,0.240131,88235.0,88232.0,0.01133375]
[1766302064542,0.000549,88232.0,88229.0,0.01133414]
[1766302065071,0.11566,88232.0,88220.0,0.31701409]
[1766302065206,0.11566,88232.0,88229.0,4.37e-06]
[1766302065414,0.11566,88232.0,88229.0,0.01133851]
[1766302066668,0.11566,88232.0,88229.0,0.06800874]
[1766302067866,0.11566,88232.0,88229.0,0.01133851]
[1766302068074,0.11566,88232.0,88229.0,0.06800874]
[1766302070529,0.11566,88232.0,88229.0,0.01133851]
[1766302073006,0.00054463,88229.0,88226.0,0.01701452]
[1766302073209,0.00054463,88229.0,88227.0,0.01133439]
[1766302073618,0.11566,88232.0,88228.0,0.01133427]
[1766302074164,0.11566,88232.0,88222.0,0.05667504]
[1766302074165,0.11566,88229.0,88218.0,0.01133427]
[1766302074367,0.11566,88225.0,88217.0,0.01133568]
[1766302074571,0.23664,88225.0,88221.0,0.01133516]
[1766302074797,0.23664,88225.0,88222.0,0.01133504]
[1766302075361,0.21819439,88225.0,88222.0,0.06800967]
[1766302075617,0.21819439,88225.0,88223.0,0.05667399]
[1766302075776,0.12098,88225.0,88223.0,0.05667399]
[1766302076141,0.12098,88225.0,88222.0,0.06800967]
[1766302076547,0.12098,88225.0,88222.0,0.06464967]
[1766302079117,0.12098,88225.0,88222.0,0.00797504]
[1766302079348,0.12098,88225.0,88223.0,0.05667456]
[1766302079549,0.12098,88225.0,88222.0,0.00797504]
[1766302081111,0.12098,88225.0,88223.0,0.05667456]
[1766302081923,0.000545,88223.0,88220.0,0.06801114]
[1766302082282,0.12098,88225.0,88220.0,0.01133529]
[1766302082491,0.12098,88223.0,88216.0,0.06127879]
[1766302082691,0.11566,88220.0,88217.0,0.00568]
[1766302083030,0.000545,88217.0,88215.0,0.00568]
[1766302083205,0.000545,88217.0,88213.0,0.01133619]
[1766302083413,0.12098,88216.0,88211.0,0.03405888]
[1766302083610,0.11566,88215.0,88212.0,0.00568]
[1766302084461,0.11566,88215.0,88212.0,0.01701632]
[1766302084859,0.11566,88215.0,88212.0,0.00568]
[1766302085265,0.09721285,88215.0,88212.0,0.01701632]
[1766302085674,0.09721285,88215.0,88212.0,0.00568]
[1766302090457,0.09721285,88215.0,88212.0,0.01701632]
[1766302091077,0.09721285,88215.0,88212.0,0.00568]
[1766302092794,0.09721285,88215.0,88212.0,0.01701632]
[1766302093622,0.12098,88216.0,88213.0,0.01133619]
[1766302096319,0.00568,88222.0,88214.0,0.01133606]
[1766302096550,0.12387,88222.0,88216.0,0.01133581]
[1766302096706,0.12387,88222.0,88217.0,0.01133568]
[1766302098251,0.12387,88222.0,88218.0,0.01133555]
[1766302099716,0.12387,88222.0,88217.0,0.01133568]
[1766302100340,0.12387,88222.0,88218.0,0.01133555]
[1766302101239,0.12387,88222.0,88217.0,0.01133568]
[1766302101412,0.12387,88222.0,88217.0,0.01128568]
[1766302101737,0.12387,88222.0,88218.0,0.01133555]
[1766302103553,0.12387,88222.0,88217.0,0.01128568]
[1766302103944,0.12387,88222.0,88218.0,0.01133555]
[1766302104772,0.12387,88222.0,88217.0,0.01128568]
[1766302105594,0.12387,88222.0,88218.0,0.01133555]
[1766302106724,0.12387,88222.0,88217.0,0.01128568]
[1766302106949,0.12387,88222.0,88218.0,0.01133555]
[1766302107075,0.00568,88222.0,88218.0,0.01133555]
[1766302109539,0.00568,88222.0,88217.0,0.01128568]
[1766302109766,0.00568,88222.0,88217.0,0.01133568]
[1766302116713,0.00568,88222.0,88216.0,0.01133581]
[1766302117074,0.00568,88222.0,88217.0,0.01133568]
[1766302118427,0.00568,88222.0,88218.0,0.01133555]
[1766302118770,0.00568,88222.0,88219.0,0.01133542]
[1766302119474,0.00568,88222.0,88218.0,0.01133555]
[1766302119678,0.00568,88222.0,88219.0,0.01133542]
[1766302119879,0.00568,88222.0,88218.0,0.01133555]
[1766302121726,0.00568,88222.0,88217.0,0.01133568]
[1766302122106,0.00568,88222.0,88219.0,0.01133542]
[1766302122303,0.00568,88222.0,88218.0,0.01133555]
[1766302123371,0.00568,88222.0,88217.0,0.01133568]
[1766302125905,0.00568,88222.0,88218.0,0.01133555]
[1766302126089,0.00568,88222.0,88219.0,0.01133542]
[1766302126334,0.00568,88222.0,88217.0,0.01133568]
[1766302127621,0.00568,88222.0,88219.0,0.01133542]
[1766302127825,0.00568,88222.0,88218.0,0.01133555]
[1766302128128,0.00568,88222.0,88219.0,0.01133542]
[1766302128778,0.00568,88222.0,88218.0,0.01133555]
[1766302129503,0.00568,88222.0,88217.0,0.01133568]
[1766302129682,0.12413,88222.0,88216.0,0.01133581]
[1766302129889,0.24391,88222.0,88216.0,0.01133581]
[1766302130291,0.11845,88221.0,88216.0,0.01133581]
[1766302130496,0.11845,88221.0,88217.0,0.01133568]
[1766302130677,0.11845,88221.0,88216.0,0.01133581]
[1766302139167,0.11845,88221.0,88217.0,0.01133568]
[1766302139592,0.11845,88221.0,88216.0,0.01133581]
[1766302140099,0.23823,88221.0,88216.0,0.01133581]
[1766302142645,0.23823,88221.0,88217.0,0.01133568]
[1766302143170,0.23823,88221.0,88216.0,0.01133581]
[1766302143285,0.000545,88217.0,88215.0,0.01133594]
[1766302143511,0.23664014,88221.0,88216.0,0.01133581]
[1766302146341,0.23664014,88221.0,88217.0,0.01133568]
[1766302147044,0.23664014,88221.0,88216.0,0.01133581]
[1766302147246,0.23664014,88221.0,88217.0,0.01133568]
[1766302147491,0.23664014,88221.0,88216.0,0.01133581]
[1766302147665,0.23664014,88221.0,88216.0,0.06801483]
[1766302147864,0.23664014,88221.0,88218.0,0.01133555]
[1766302148101,0.00568,88222.0,88219.0,0.01133542]
[1766302149806,0.00568,88222.0,88217.0,0.01133568]
[1766302149971,0.00568,88222.0,88218.0,0.01133555]
[1766302150367,0.00568,88222.0,88219.0,0.01133542]
[1766302151809,0.00568,88222.0,88218.0,0.01133555]
[1766302152009,0.00568,88222.0,88219.0,0.01133542]
[1766302152458,0.00568,88222.0,88219.0,0.06801197]
[1766302153193,0.00568,88222.0,88221.0,0.05667584]
[1766302153528,0.00568,88222.0,88219.0,0.06801197]
[1766302159949,0.000549,88219.0,88217.0,0.01133568]
[1766302160148,8.567e-05,88219.0,88217.0,0.01133568]
[1766302160614,0.00568,88222.0,88217.0,0.01133568]
[1766302166709,0.00568,88222.0,88218.0,0.01133555]
[1766302169567,8.5e-05,88218.0,88217.0,0.01133568]
[1766302170276,0.00568,88222.0,88218.0,0.01133555]
[1766302171515,0.00568,88222.0,88217.0,0.01133568]
[1766302172161,0.00568,88222.0,88218.0,0.01133555]
[1766302174089,0.00568,88222.0,88219.0,0.01133542]
[1766302186449,0.00568,88222.0,88218.0,0.01133555]
[1766302186650,0.00568,88222.0,88219.0,0.01133542]
[1766302189755,0.00568,88222.0,88218.0,0.01133555]
[1766302189960,0.00568,88222.0,88219.0,0.01133542]
[1766302190565,0.00568,88222.0,88218.0,0.01133555]
[1766302191724,0.00568,88222.0,88217.0,0.01133568]
[1766302192955,0.00568,88222.0,88218.0,0.01133555]
[1766302193575,0.00568,88222.0,88219.0,0.01133542]
[1766302193793,0.00568,88222.0,88218.0,0.01133555]
[1766302195477,0.00568,88222.0,88219.0,0.01133542]
[1766302198383,0.00568,88222.0,88200.0,4.50628871]
[1766302198384,0.23888,88217.0,88200.0,4.50628871]
[1766302198554,0.31708222,88210.0,88201.0,0.01133773]
[1766302198762,0.23888,88211.0,88204.0,0.01133735]
[1766302198894,0.23888,88211.0,88205.0,0.01133722]
[1766302199350,0.23888,88211.0,88206.0,0.01133709]
[1766302199891,0.23888,88211.0,88205.0,0.01133722]
[1766302200913,0.00969914,88213.0,88209.0,0.01133671]
[1766302201245,0.00969914,88213.0,88210.0,0.01133658]
[1766302201896,0.00568,88217.0,88211.0,0.01133645]
[1766302202113,0.00568,88217.0,88204.0,0.01133735]
[1766302202267,0.10658707,88216.0,88204.0,0.00568]
[1766302202471,0.23888,88215.0,88200.0,4.49495085]
[1766302202670,0.08386075,88216.0,88200.0,4.50628871]
[1766302202849,0.08386075,88216.0,88201.0,0.01701773]
[1766302202850,0.12482,88213.0,88201.0,0.01701773]
[1766302203056,0.03406321,88214.0,88201.0,0.00568]
[1766302203057,0.11406,88210.0,88201.0,0.00568]
[1766302203250,0.23888,88207.0,88201.0,0.00568]
[1766302203454,0.23888,88207.0,88202.0,0.01133761]
[1766302204058,0.23888,88207.0,88203.0,0.01133748]
[1766302204313,0.23888,88207.0,88202.0,0.01133761]
[1766302204893,0.23888,88207.0,88201.0,0.01701773]
[1766302205529,0.23888,88207.0,88201.0,0.00568]
[1766302205751,0.23888,88207.0,88201.0,0.01701773]
[1766302206178,0.23888,88207.0,88202.0,0.01133761]
[1766302207245,0.23888,88207.0,88201.0,0.01701773]
[1766302207677,0.23888,88207.0,88202.0,0.01133761]
[1766302208132,0.23888,88207.0,88204.0,0.01133735]
[1766302208364,0.23888,88207.0,88203.0,0.01133748]
[1766302211112,0.23888,88207.0,88201.0,0.01701773]
[1766302211805,0.23888,88207.0,88202.0,0.01133761]
[1766302212028,0.23888,88207.0,88201.0,0.01701773]
[1766302212243,0.23888,88207.0,88202.0,0.01133761]
[1766302213772,0.10658815,88216.0,88202.0,0.01133761]
[1766302213983,0.24253,88215.0,88202.0,0.01133761]
[1766302214211,0.24253,88215.0,88203.0,0.01133748]
[1766302214436,0.10658815,88216.0,88204.0,0.01133735]
[1766302214659,0.24253,88215.0,88204.0,0.01133735]
[1766302214886,0.10658815,88216.0,88204.0,0.01133735]
[1766302215608,0.24253,88215.0,88204.0,0.01133735]
[1766302215826,0.10658815,88216.0,88204.0,0.01133735]
[1766302216046,0.24253,88215.0,88204.0,0.01133735]
[1766302216263,0.10658815,88216.0,88204.0,0.01133735]
[1766302216481,0.24253,88215.0,88204.0,0.01133735]
[1766302216889,0.10658815,88216.0,88204.0,0.01133735]
[1766302217105,0.12355,88215.0,88207.0,0.01133696]
[1766302217971,0.12355,88215.0,88206.0,0.01133709]
[1766302218635,0.12345,88215.0,88206.0,0.0116955]
[1766302218811,0.24243,88215.0,88206.0,0.0116955]
[1766302219019,0.25376735,88215.0,88206.0,0.0116955]
[1766302219841,0.25376735,88215.0,88206.0,0.00035841]
[1766302220717,0.13031735,88215.0,88206.0,0.00035841]
[1766302220963,0.12355,88214.0,88206.0,0.00035841]
[1766302223426,0.12355,88214.0,88206.0,0.0116955]
[1766302223644,0.01133735,88213.0,88206.0,0.0116955]
[1766302224294,0.12355,88214.0,88206.0,0.0116955]
[1766302224750,0.12355,88214.0,88207.0,0.01133696]
[1766302225568,0.12355,88214.0,88206.0,0.0116955]
[1766302225746,0.24104,88214.0,88206.0,0.0116955]
[1766302227194,0.24104,88214.0,88207.0,0.01133696]
[1766302227795,0.24104,88214.0,88206.0,0.0116955]
[1766302229311,0.24104,88214.0,88206.0,0.00035841]
[1766302229511,0.24104,88214.0,88206.0,0.0116955]
[1766302229871,0.24104,88214.0,88206.0,0.00035841]
[1766302230805,0.24104,88214.0,88206.0,0.0116955]
[1766302231017,0.24104,88214.0,88206.0,0.00035841]
[1766302231439,0.24104,88214.0,88206.0,0.0116955]
[1766302232247,0.24104,88214.0,88207.0,0.01133696]
[1766302234672,0.24104,88214.0,88206.0,0.0116955]
[1766302234888,0.24104,88214.0,88206.0,0.06838034]
[1766302235683,0.24104,88214.0,88207.0,0.01133696]
[1766302237227,0.24104,88214.0,88206.0,0.0116955]
[1766302237407,0.24104,88214.0,88207.0,0.01133696]
[1766302238171,0.24104,88214.0,88206.0,0.0116955]